Cogmind - Beta 17.1 @@@ ROGUE MODE // 2026.08.28 @ 17:19:48 Player: Gatamar Result: Destroyed by S-10 Pest with Light Assault Rifle Performance ------------- Evolutions (1) 500 Regions Visited (3) 600 Robots Destroyed (36) 180 Value Destroyed (1033) 1033 Prototype IDs (2) 40 Alien Tech Used (0) 0 Bonus (0) 0 TOTAL SCORE: 2353 Bonus ------- None Cogmind --------- Core Integrity 0/400 Matter 290/300 Energy 175/250 System Corruption 0% Temperature Cool (0) Movement Treading (240) Ox1 Location -9/Materials Parts ------- > --- POWER (1) -------- Ion Engine > --- PROPULSION (2) --- Light Treads > --- UTILITY (4) ------ Improved Heat Sink Cooling System Large Storage Unit Core Shielding > --- WEAPON (2) ------- Spread Laser Advanced Beam Cannon > --- INVENTORY (15) --- Ion Engine Small Storage Unit High-capacity Matter Pod (200) Experimental Sensor Array Signal Interpreter Improved Targeting Computer Target Analyzer Faulty Improved EM Shotgun Small Laser Shotgun Shotgun Mining Laser Mining Laser Peak State ------------ > --- POWER ------------ Ion Engine > --- PROPULSION ------- Light Treads Light Treads > --- UTILITY ---------- Large Storage Unit Experimental Sensor Array > --- WEAPON ----------- Medium Laser Assault Rifle > --- INVENTORY -------- Ion Engine Light Ion Engine Aluminum Leg Aluminum Leg Carbon-fiber Leg Improved Heat Sink Small Storage Unit High-capacity Matter Pod Signal Interpreter Seismic Detector Target Analyzer Medium Laser Grenade Launcher Mining Laser Mining Laser [Rating: 17] Favorites ----------- Power Ion Engine Engine Ion Engine Propulsion Light Treads Treads Light Treads Utility Large Storage Unit Device Seismic Detector Storage Large Storage Unit Protection Core Shielding Weapon Medium Laser Energy Gun Medium Laser Energy Cannon Advanced Beam Cannon Ballistic Gun Assault Rifle Launcher Grenade Launcher Special Weapon Mining Laser Slashing Weapon Katana Build | -11 -10 -10 -9 ------- Run | Yrd Mat Min Mat Slots Evolved 2 | . . . 2 Power . | . . . . Propulsion . | . . . . Utility 2 | . . . 2 Weapon . | . . . . Parts Attached 28 | 7 3 1 17 Power 4 | 1 1 . 2 Engine 4 | 1 1 . 2 Core . | . . . . Reactor . | . . . . Propulsion 7 | 2 . . 5 Treads 7 | 2 . . 5 Leg . | . . . . Wheel . | . . . . Hover . | . . . . Flight . | . . . . Utility 8 | 2 1 1 4 Device 5 | 1 . 1 3 Storage 2 | 1 1 . . Processor . | . . . . Hackware . | . . . . Protection 1 | . . . 1 Artifact . | . . . . Weapon 9 | 2 1 . 6 Energy Gun 4 | 1 1 . 2 Energy Cannon 1 | . . . 1 Ballistic Gun 1 | 1 . . . Ballistic Cannon . | . . . . Launcher 1 | . . . 1 Special Weapon 1 | . . . 1 Impact Weapon . | . . . . Slashing Weapon 1 | . . . 1 Piercing Weapon . | . . . . Special Melee Weapon . | . . . . Unidentified Prototypes 2 | . . 1 1 Parts Lost 12 | . . . 12 Power 1 | . . . 1 Propulsion 3 | . . . 3 Utility 2 | . . . 2 Weapon 6 | . . . 6 Highest Loss Streak 5 | . . . 5 To Critical Strikes . | . . . . Average Backups 10 | 1 8 13 12 Power 1 | . 1 2 1 Propulsion 1 | 1 2 2 1 Utility 4 | . 2 5 5 Weapon 2 | . 1 4 3 Tool/Special . | . . . . Unused Backups 13 | . 1 . 12 Power . | . . . . Propulsion 3 | . . . 3 Utility 6 | . 1 . 5 Weapon 4 | . . . 4 Tool/Special . | . . . . Average Slot Usage (%) 95 | . 100 100 91 Engine 12 | . 14 14 10 Treads 24 | . 28 28 20 Device 19 | . 14 14 25 Storage 12 | . 14 14 11 Protection 1 | . . . 2 Energy Gun 13 | . 14 14 13 Ballistic Gun 9 | . 14 14 5 Peak Build Rating 17 | 7 8 17 17 Average Rating 10 | 5 7 8 14 On Entrance 6 | . 7 8 9 Avg Prop Armor Cover (%) . | . . . . Naked Turns . | . . . . Heaviest Build 36 | 13 30 30 36 Greatest Support 40 | 40 40 40 40 Greatest Overweight (x) 11 | 1 . . 11 Average Overweight (x) . | . . . . Largest Inventory Capacity 15 | 8 15 15 15 Average Capacity 14 | 7 14 15 15 Most Carried 15 | 3 11 15 15 Average Carried 10 | 2 8 13 12 Final Capacity 15 | 8 15 15 15 Final Carried 15 | 3 11 15 13 Class Distribution -------------------- 81% | Mutant 18% | Scavenger-Mutant Dominant Class ---------------- Mutant | -10/Materials Mutant | -10/Mines Mutant | -9/Materials Resources | -11 -10 -10 -9 ----------- Run | Yrd Mat Min Mat Matter Collected 915 | 263 236 144 272 Remotely . | . . . . Salvage Created 1307 | 28 259 . 1020 Parts 81 | 3 8 . 70 Haulers Intercepted 1 | . . . 1 Recyclers Shooed 4 | . 2 . 2 Parts Field Recycled . | . . . . Retrieved Matter . | . . . . Parts Self-Destructed . | . . . . Prevented . | . . . . Parts Restored . | . . . . Kills | -11 -10 -10 -9 ------- Run | Yrd Mat Min Mat Combat Hostiles Destroyed 27 | . 5 . 22 Melee 2 | . . . 2 Guns 23 | . 5 . 18 AOE 2 | . . . 2 Classes Destroyed 10 | 1 2 . 7 Worker 1 | . . . 1 Builder 2 | . . . 2 Tunneler 2 | 2 . . . Hauler 1 | . . . 1 Recycler 1 | . . . 1 Watcher 2 | . 2 . . Swarmer 2 | . . . 2 Grunt 20 | . 5 . 15 Duelist 2 | . . . 2 Sentry 3 | . . . 3 Best Kill Streak 4 | 2 2 . 4 Combat Bots Only 4 | . 2 . 4 Max Kills in Single Turn 1 | 1 1 . 1 Gunslinging . | . . . . Exploded 1 | . . . 1 Melee 1 | . . . 1 Uniques/NPCs Destroyed . | . . . . Combat | -11 -10 -10 -9 -------- Run | Yrd Mat Min Mat Hostile Shots Fired 202 | . 38 . 164 Missed 48 | . 11 . 37 Hits 154 | . 27 . 127 Melee 10 | . . . 10 Projectile 144 | . 27 . 117 Critical Strikes 7 | . 1 . 6 Damage Taken 2032 | . 361 . 1671 Core 464 | . 59 . 405 Absorbed by Shields 140 | . . . 140 Redirected to Shielding 10 | . . . 10 Core Remaining (%) 88 | 100 . 76 . Volleys Fired 115 | 10 31 . 74 Largest 2 | 1 2 . 2 Hottest 133 | 20 70 . 133 Shots Fired 213 | 10 62 . 141 Gun 203 | 10 62 . 131 Cannon 7 | . . . 7 Launcher 3 | . . . 3 Special . | . . . . Kinetic 63 | 10 31 . 22 Thermal 147 | . 31 . 116 Explosive 3 | . . . 3 Electromagnetic . | . . . . Robot Hit Streak 15 | 4 9 . 15 Robot Miss Streak 5 | 2 2 . 5 Penetration Max . | . . . . Secondary Targets 1 | . . . 1 Max Gunslinging Chain 1 | . . . 1 Shots Hit Robots 163 | 6 45 . 112 Core Hits 75 | 2 15 . 58 Critical Kills . | . . . . Critical Parts Destroyed . | . . . . Critical Strikes 4 | . 1 . 3 Burn 4 | . 1 . 3 Melee Attacks 9 | . . . 9 Impact . | . . . . Slashing 9 | . . . 9 Piercing . | . . . . Sneak Attacks 3 | . . . 3 Combat Hostiles . | . . . . Follow-up Attacks . | . . . . Damage Inflicted 2594 | 79 594 . 1921 Guns 1880 | 79 594 . 1207 Cannons 61 | . . . 61 Explosions 309 | . . . 309 Melee 323 | . . . 323 Ramming 21 | . . . 21 Kinetic 599 | 79 278 . 242 Thermal 1342 | . 316 . 1026 Explosive 309 | . . . 309 Electromagnetic . | . . . . Impact . | . . . . Slashing 323 | . . . 323 Piercing . | . . . . Highest Corruption . | . . . . Average Corruption . | . . . . Corruption Purged . | . . . . Corruption Blocked . | . . . . Overload Shots . | . . . . Overflow Damage 87 | . . . 87 Projectiles . | . . . . Explosions 16 | . . . 16 Melee 71 | . . . 71 Knockbacks . | . . . . Impact . | . . . . Kinetic . | . . . . Secondary . | . . . . Self-Inflicted Damage 118 | . . . 118 Shots 3 | . . . 3 Rammed 4 | . . . 4 Targets Rammed 5 | . . . 5 Kicked . | . . . . Crushed 1 | . . . 1 Highest Temperature 246 | . 246 . 14 Average Temperature 86 | . 89 . 4 Received Heat Transfer 712 | . 219 . 493 Siege Activations . | . . . . Martial Activations . | . . . . Shielding Activations . | . . . . Robots Disrupted . | . . . . Combat Hostiles . | . . . . Robots Corrupted . | . . . . Combat Hostiles . | . . . . Parts Fried . | . . . . Impact Corruptions . | . . . . Robots Melted . | . . . . Combat Hostiles . | . . . . Parts Melted 3 | . 1 . 2 Heat Transferred 3857 | . 999 . 2858 Parts Sabotaged . | . . . . Parts Stolen . | . . . . Parts Stripped . | . . . . Power Chain Reactions . | . . . . Alert | -11 -10 -10 -9 ------- Run | Yrd Mat Min Mat Maximum Alert Level 1 | . . . 1 Low Security (%) 99 | 100 100 100 99 Level 1 . | . . . . Level 2 . | . . . . Level 3 . | . . . . Level 4 . | . . . . Level 5 . | . . . . High Security . | . . . . Max Security . | . . . . Peak Influence 227 | 10 45 8 227 Initial 8 | . . 8 . Average 38 | 1 8 . 81 Influence Increases 801 | 10 160 . 631 Destroy 0b10 Robot/C 540 | . 100 . 440 Destroy 0b10 Robot/NC 45 | 10 10 . 25 Destroy Leader 106 | . 34 . 72 Destroy Structure 20 | . 1 . 19 Lose Combat Pursuer 90 | . 15 . 75 Influence Decreases 574 | 10 138 22 404 Entered New Map 14 | . . 14 . Time Decay 440 | 10 138 8 284 Lost Part 120 | . . . 120 Squads Dispatched 3 | . 1 1 1 Investigation 2 | . . 1 1 Extermination . | . . . . Reinforcement 1 | . 1 . . Assault . | . . . . Garrison . | . . . . Intercept . | . . . . Searches Triggered . | . . . . Construction Impeded . | . . . . Haulers Reinforced . | . . . . Active Scanning Responses . | . . . . Cargo Convoy Interrupts . | . . . . Stealth | -11 -10 -10 -9 --------- Run | Yrd Mat Min Mat Distress Signals 1 | . . . 1 Communications Jammed . | . . . . Distress Signals . | . . . . Times Spotted 43 | . 8 . 35 Peak Tracking Total 5 | . 2 . 5 Tactical Retreats 5 | . 1 . 4 Traps | -11 -10 -10 -9 ------- Run | Yrd Mat Min Mat Traps Triggered 1 | . . . 1 Indirectly . | . . . . Trap Hack Attempts . | . . . . Triggered . | . . . . Disarmed . | . . . . Reprogrammed . | . . . . Reused . | . . . . Traps Extracted . | . . . . Installed . | . . . . Triggered . | . . . . Machines | -11 -10 -10 -9 ---------- Run | Yrd Mat Min Mat Machines Disabled 1 | . . . 1 Max in Single Turn 1 | . . . 1 Machines Repaired . | . . . . Machines Dismantled . | . . . . Machines Sabotaged . | . . . . Overloaded Fab Kills . | . . . . Hacking | -11 -10 -10 -9 --------- Run | Yrd Mat Min Mat Machines Accessed 3 | . . 1 2 Terminals 2 | . . . 2 Fabricators . | . . . . Repair Stations . | . . . . Recycling Units . | . . . . Scanalyzers . | . . . . Garrison Access . | . . . . Total Hacks 3 | . . 1 2 Successful 2 | . . 1 1 Failed 1 | . . . 1 Catastrophic . | . . . . Database Lockouts . | . . . . Manual 2 | . . . 2 Terminals 2 | . . . 2 Fabricators . | . . . . Repair Stations . | . . . . Recycling Units . | . . . . Scanalyzers . | . . . . Garrison Access . | . . . . Terminal Hacks 2 | . . 1 1 Open Door 1 | . . 1 . Branch Access Points 1 | . . . 1 Fabricator Hacks . | . . . . Repair Station Hacks . | . . . . Recycling Unit Hacks . | . . . . Scanalyzer . | . . . . Garrison Access Hacks . | . . . . Unauthorized Hacks . | . . . . Terminals . | . . . . Fabricators . | . . . . Repair Stations . | . . . . Recycling Units . | . . . . Scanalyzers . | . . . . Garrison Access . | . . . . Data Cores Recovered . | . . . . Used . | . . . . Hacking Detections 1 | . . . 1 Full Trace Events . | . . . . Feedback Events . | . . . . Feedback Blocked . | . . . . Robot Schematics Acquired . | . . . . Robots Built . | . . . . Authchips . | . . . . Time . | . . . . Total Robot Build Rating . | . . . . Part Schematics Acquired . | . . . . Parts Built . | . . . . Authchips . | . . . . Time . | . . . . Total Part Build Rating . | . . . . Part Studies Acquired . | . . . . Parts Repaired . | . . . . Time . | . . . . Parts Recycled . | . . . . Recycled Matter . | . . . . Retrieved Matter . | . . . . Retrieved Components . | . . . . Parts Scanalyzed . | . . . . Part Schematics Acquired . | . . . . Parts Damaged . | . . . . Bothacking | -11 -10 -10 -9 ------------ Run | Yrd Mat Min Mat Used RIF Installer . | . . . . Robots Hacked . | . . . . Non-combat . | . . . . Combat . | . . . . Robot Hacks Applied . | . . . . Relay Couplers Released . | . . . . Fabnet Peak Effective % . | . . . . Robots Rewired . | . . . . Allies Hacked . | . . . . Hacks Repelled . | . . . . Allies | -11 -10 -10 -9 -------- Run | Yrd Mat Min Mat Total Allies . | . . . . Largest Group . | . . . . Highest-Rated Group . | . . . . Highest-Rated Ally . | . . . . Total Orders . | . . . . Ally Attacks . | . . . . Total Damage . | . . . . Kills . | . . . . Allies Corrupted . | . . . . Allies Melted . | . . . . Intel | -11 -10 -10 -9 ------- Run | Yrd Mat Min Mat Active Infowar (turns) 1322 | 27 684 286 325 Sensors 1 | . . 1 . Seismic 1321 | 27 684 285 325 Robot Analysis Total . | . . . . Derelict Logs Recovered . | . . . . Drone Launches . | . . . . Drone Recoveries . | . . . . Exploration | -11 -10 -10 -9 ------------- Run | Yrd Mat Min Mat Turns Passed 1941 | 118 684 286 853 Spaces Moved 818 | 56 344 166 252 Core 6 | 4 . . 2 Treads 812 | 52 344 166 250 Legs . | . . . . Wheels . | . . . . Hover . | . . . . Flight . | . . . . Fastest Speed 50 | 50 160 160 160 Average Speed 162 | 153 160 160 169 Slowest Speed 600 | 160 160 160 600 Overloaded Moves . | . . . . Propulsion Burnouts . | . . . . Robots Hopped . | . . . . Potential Cave-ins . | . . . . Cave-ins Triggered 1 | . . . 1 Exploration Rate (%) 23 | 4 43 27 21 Regions Visited 3 Branch Regions 1 Pre-discovered Areas . | . . . . Known Exits Taken . | . . . . Unknown Exits Taken 3 | 1 1 1 . Scrap Searched 1 | . . 1 . Spaces Dug . | . . . . Terrain Destroyed 19 | . . . 19 Melee . | . . . . Projectile . | . . . . AOE 19 | . . . 19 Terrain Rammed . | . . . . Walls Destroyed . | . . . . Machines Disabled . | . . . . Actions | -11 -10 -10 -9 --------- Run | Yrd Mat Min Mat Total 1195 | 75 415 186 519 Wait 182 | . 30 15 137 Move 815 | 55 343 165 252 Hop . | . . . . Pick Up 23 | 3 7 4 9 Fast Attach 14 | 7 . . 7 Attach 9 | . . . 9 Detach . | . . . . Swap 14 | . 3 2 9 Drop 9 | . 1 . 8 Fire 115 | 10 31 . 74 Melee 9 | . . . 9 Ram . | . . . . Kick . | . . . . Crush 5 | . . . 5 Escape Stasis . | . . . . Rewire . | . . . . Trap . | . . . . Miscellaneous . | . . . . Route ------- -11/Scrapyard -10/Materials -10/Mines -9/Materials (discovered 2 exits: *Min x2) History --------- Turn | Location | Event 16 | -11/Scrapyard | Discovered new exit (range 16) 119 | -11/Scrapyard | Entered Materials 316 | -10/Materials | Build established: Mutant 693 | -10/Materials | Discovered new exit (range 15) 803 | -10/Materials | Entered Mines 809 | -10/Mines | Met a Derelict shopkeep closing up shop 1030 | -10/Mines | Found a damaged Exp. Sensor Array with a note attached 1034 | -10/Mines | Found Prototype Device 1035 | -10/Mines | Identified Exp. Sensor Array 1065 | -10/Mines | Discovered new exit (range 13) 1089 | -10/Mines | Entered Materials 1089 | -9/Materials | Evolved 2 slots: Utility x2 1364 | -9/Materials | Discovered new exit (range 13) 1368 | -9/Materials | Identified exit to Mines 1615 | -9/Materials | Core integrity fell below 50% 1619 | -9/Materials | Crushed by falling debris 1645 | -9/Materials | Lost 5 parts (1p1n1u2w) 1728 | -9/Materials | Core integrity fell below 20% 1942 | -9/Materials | Destroyed by S-10 Pest with Light Assault Rifle Last Messages --------------- 01935_ R-06 Scavenger inserts Med. Storage Unit into recycling unit. 01936_ Recycling unit begins recycling process. 01936_ Y-45 Defender destroyed. 01937_ R-06 Scavenger inserts Sml. Laser into recycling unit. 01938_ R-06 Scavenger inserts Prototype Energy Gun into recycling unit. 01939_ Recycling unit begins recycling process. 01939_ S-10 Pest suffers critical hit (Destroy). 01939_ S-10 Pest destroyed. 01939_ Flight Unit melted. 01939_ S-10 Pest destroyed. 01940_ R-06 Scavenger inserts Aluminum Leg into recycling unit. 01940_ K-01 Serf cleans the Terminal. 01941_ R-06 Scavenger inserts Faulty Adv. Beam Cannon into recycling unit. 01941_ K-01 Serf collects debris. 01942_ Recycling unit begins recycling process. Map ----- +----------------------------------------------------+ | ?????????????????????????????????????????????????? | | ?????????????????????????????????????????????????? | | ?????????????????????????????????????????????????? | | ?????????????????????????????????????????????????? | | ?????????????????????????????????????????????????? | | ?????????????????????????????????????????????????? | | ?????????????????????????????????????????????????? | | ?????????????????????????????????????????????????? | | ?????????????????????????????????????????????????? | | ?????????????????????????????????????????????????? | | ?????????????????????????????????????????????????? | | ???????????????????????????>?????????????????????? | | ?????????????????????????????????????????????????? | | ?????????????????????????????????????????????????? | | ???????????????????????????+##???????????????????? | | ??????????????????????????? ????????????????????? | | ???????????????????????????! ????????????????????? | | ??????????????????????????? ????????????????????? | | ??????????????????????????? #????????????????????? | | ?????????????????#+######## #????????????????????? | | ?????????????????# #????????????#######?? | | ??????????# ??# #????????????? #? | | ??????????+ Tk#[ r r ##????????????? #? | | ???????????? *s% k "Y"! T#?????????????? #? | | ?????????????????# """%!#????############ #? | | ?????????????????# %= @= ###### """ """ ## #? | | ?????????????????#[*%= ![% + """ """ ## #? | | ?????????????#####+####"T"######## """ """ ## ## | | ?????????????# #?#####??????# # # | | ?????????????# %! !#????????????# # | | ?????????????# #????????###?# # | | ?????????????# #???########## !== # | | ?????????????# #???#""!"|"!## %%=* # # | | ?????????????# =*! #???# "!"|" #######+##### ## | | ?? ##############+####### #####!!%!%### #? | | ? =%[% [%= % = %**= #? | | ? % % ! !%> =%[ T #? | | ? % % % ! #? | | ??#### ### ####/## ## ##### ### #? | | ?????????# ??# [ # ########## ########?# #? | | ?????????# ???# T # #????????####????????# #? | | ?????????#????# # #????????????????????# #? | | ??????????????# # #????????????????????# #? | | ??????????????# # #????????????????????# #? | | ??????????????# # #???????????????????? #? | | ??????????????# # +???????????????????? #? | | ??????????????# # #???????????????????? #? | | ??????????????+ # #????????????????????#####? | | ????????????? #+##### ##?????????????????????????? | | ????????????? ????# #??????????????????????????? | +----------------------------------------------------+ Best States ------------- Heat Dissipation 64 Energy Generation 12 Energy Capacity 265 Matter Stores 300 Matter Capacity 300 Sight Range 16 Terrain Scan Density 10 Core Shielding 20 Evasion (%) 40 Recoil Reduction 2 Item Schematics ----------------- None Robot Schematics ------------------ None Fabricated ------------ Nothing Repaired ---------- Nothing Studied --------- None Alien Tech Used ----------------- None Achievements -------------- None Challenges ------------ None Game ------ Seed RefineryNovaModule Manual? 0 Play Time 00:17:05 Cumulative 54.8 hours Start 2026.08.27 @ 20:51:12 End 2026.08.28 @ 17:19:48 Sessions 3 Manual Loads 0 Difficulty Rogue Special Mode None Game No. 117 Rogue 117 Adventurer 0 Explorer 0 Win Type - Total 0 Types 0/0/0/0/0/0/0/0/0/0 Lore% 30 Gallery% 34 Achievement% 28 Wizard Run 0 Options --------- Layout 2 ASCII 0 Keyboard 0 Movement Numpad Keybinds 0 Fullscreen 2 Font 32/SmallcapsGlow Map View 50x44 Zoom Use 0% Tactical HUD 1 Map Filters NONE Filters NONE Steam 1 RUN: 02f24ae4-e74b-4abe-9328-71580a92804a